bitfinex-derivatives/quotes_ETHF0:USTF0_20260123
["timestamp","ask_amount","ask_price","bid_price","bid_amount"]
[1769184752708,1.22209118,2955.3,2953.5,0.15254812]
[1769184753009,1.22209118,2955.2,2953.5,0.15254812]
[1769184753208,1.22209118,2955.1,2953.5,0.15254812]
[1769184753403,0.90797186,2955.0,2953.5,0.15254812]
[1769184753603,0.90797186,2954.9,2953.5,0.15254812]
[1769184753807,0.16938,2955.5,2953.5,0.15254812]
[1769184754007,1.22225524,2955.4,2953.5,0.15254812]
[1769184754208,1.22225524,2955.3,2953.5,0.15254812]
[1769184754408,1.22225524,2955.2,2953.5,0.15254812]
[1769184754603,0.90809266,2955.1,2953.5,0.15254812]
[1769184754802,0.90809266,2955.0,2953.5,0.15254812]
[1769184755004,0.90821158,2954.9,2953.5,0.15254812]
[1769184755310,0.16939,2955.4,2953.5,0.15254812]
[1769184755514,1.22306483,2955.3,2953.5,0.15254812]
[1769184755704,1.22306483,2955.2,2953.5,0.15254812]
[1769184755906,1.22306483,2955.1,2953.5,0.15254812]
[1769184756105,1.22307476,2955.0,2953.5,0.15254812]
[1769184756306,0.90869707,2954.9,2953.5,0.15254812]
[1769184756609,0.1694,2955.2,2953.5,0.15254812]
[1769184756809,1.22374521,2955.1,2953.5,0.15254812]
[1769184757010,1.22374521,2955.0,2953.5,0.15254812]
[1769184757312,1.2237907,2954.9,2953.5,0.15254812]
[1769184757515,1.2237907,2954.8,2953.5,0.15254812]
[1769184757814,0.90924405,2954.7,2953.5,0.15254812]
[1769184758015,0.1694,2955.2,2953.5,0.15254812]
[1769184758210,1.21840514,2955.1,2953.5,0.15254812]
[1769184758406,1.21840514,2955.0,2953.5,0.15254812]
[1769184758603,1.21840514,2954.9,2953.5,0.15254812]
[1769184758812,1.39080313,2954.8,2953.5,0.00282994]
[1769184759012,1.39080313,2954.7,2953.0,0.15044663]
[1769184759213,1.21840514,2954.6,2953.0,0.15044663]
[1769184759508,1.21840514,2954.5,2953.0,0.15044663]
[1769184759703,1.21840514,2954.4,2953.0,0.15044663]
[1769184759910,2.58980562,2955.2,2953.0,0.15044663]
[1769184760108,1.21844492,2955.1,2953.0,0.15344205]
[1769184760307,1.21844492,2955.0,2953.0,0.15344205]
[1769184760513,1.21844492,2954.9,2953.0,0.15344205]
[1769184760816,1.21844492,2954.8,2953.0,0.15344205]
[1769184761110,1.21844492,2954.7,2953.0,0.15344205]
[1769184761315,1.21844492,2954.6,2953.0,0.15344205]
[1769184761517,0.90381297,2954.5,2953.0,0.15344205]
[1769184761712,0.17173887,2955.2,2953.0,0.15344205]
[1769184762011,1.21827137,2955.1,2953.0,0.15344205]
[1769184762211,1.21827137,2955.0,2953.0,0.15344205]
[1769184762412,1.21827137,2954.9,2953.2,0.15235253]
[1769184762717,1.21827137,2954.8,2953.2,0.15235253]
[1769184762913,1.21827137,2954.7,2953.2,0.15235253]
[1769184763106,0.1694,2955.2,2953.2,0.15235253]
[1769184763410,1.21818461,2955.1,2953.3,0.15235253]
[1769184763608,1.21818461,2955.0,2953.3,0.15235253]
[1769184763807,1.21818461,2954.9,2953.3,0.15235253]
[1769184764110,1.21818461,2954.8,2953.3,0.15235253]
[1769184764310,0.1694,2955.2,2953.3,0.15235253]
[1769184764513,1.21843983,2955.1,2953.3,0.15235253]
[1769184764813,1.21843983,2955.0,2953.3,0.15235253]
[1769184765015,1.21843983,2954.9,2953.3,0.15235253]
[1769184765312,1.21843983,2954.8,2953.3,0.15235253]
[1769184765505,0.1694,2955.2,2953.3,0.15235253]
[1769184765705,0.16941,2955.0,2953.3,0.15235253]
[1769184765912,1.21866105,2954.9,2953.3,0.15235253]
[1769184766216,1.21866105,2954.8,2953.3,0.15235253]
[1769184766411,1.21866105,2954.7,2953.3,0.15235253]
[1769184766612,1.21866105,2954.6,2953.3,0.15235253]
[1769184766812,1.21866105,2954.5,2953.0,0.00299542]
[1769184767013,1.21866105,2954.4,2953.0,0.00299542]
[1769184767215,0.31468524,2954.3,2953.0,0.15513921]
[1769184767418,0.16942,2954.8,2953.0,0.15513921]
[1769184767613,1.21862758,2954.7,2953.0,0.15513921]
[1769184767918,0.16942,2954.8,2953.0,0.15513921]
[1769184767919,1.21862758,2954.6,2953.0,0.15513921]
[1769184768117,1.21862758,2954.5,2953.0,0.15513921]
[1769184768319,0.16942,2954.8,2953.0,0.15513921]
[1769184768519,1.21845568,2954.7,2953.0,0.15513921]
[1769184768816,1.21845568,2954.6,2953.0,0.15513921]
[1769184769022,1.21845568,2954.5,2953.0,0.15513921]
[1769184769213,1.21845568,2954.4,2953.0,0.15513921]
[1769184769517,0.16942,2954.8,2953.0,0.15513921]
[1769184769719,1.21834147,2954.7,2953.0,0.15513921]
[1769184769912,1.21834147,2954.6,2953.0,0.15513921]
[1769184770113,1.21834147,2954.5,2953.0,0.15513921]
[1769184770314,0.16942,2954.8,2953.0,0.15513921]
[1769184770520,1.21819052,2954.7,2953.0,0.15513921]
[1769184770717,1.21819052,2954.6,2953.0,0.15513921]
[1769184770916,1.21819052,2954.5,2953.0,0.15513921]
[1769184771122,0.16942,2954.8,2953.0,0.15513921]
[1769184771323,1.21818781,2954.7,2953.0,0.15513921]
[1769184771522,1.21818781,2954.6,2953.0,0.15513921]
[1769184771715,1.21818781,2954.5,2953.0,0.15513921]
[1769184772023,0.16942,2954.8,2953.0,0.00299542]
[1769184772024,1.38763781,2954.4,2953.0,0.00299542]
[1769184772223,1.21818781,2954.3,2953.0,0.00299542]
[1769184772421,1.21818781,2954.2,2953.0,0.00299542]
[1769184772725,0.00177636,2954.0,2953.0,0.00121906]
[1769184772920,1.21818781,2953.9,2952.0,0.15104244]
[1769184773121,1.21818781,2953.8,2952.0,0.15104244]
[1769184773320,1.21818781,2953.7,2952.0,0.15104244]
[1769184773530,0.16945,2954.3,2952.1,0.15193062]
[1769184773718,1.21785962,2954.2,2952.1,0.15193062]
[1769184774020,1.21785962,2954.1,2952.1,0.15518534]
[1769184774322,2.43008138,2955.0,2952.6,0.15186483]
[1769184774521,1.21776852,2954.9,2952.6,0.15186483]
[1769184774718,1.21776852,2954.8,2952.6,0.15186483]
[1769184774917,1.21776852,2954.7,2952.6,0.15186483]
[1769184775122,1.21776852,2954.6,2952.6,0.15186483]
[1769184775322,1.21776852,2954.5,2952.6,0.15186483]
[1769184775517,1.21776852,2954.4,2952.6,0.15186483]
[1769184775719,0.31445663,2954.3,2952.6,0.15186483]
[1769184775924,0.16943,2954.8,2952.7,0.15442454]
[1769184776125,1.2179536,2954.7,2952.7,0.15442454]
[1769184776334,1.2179536,2954.6,2952.7,0.15442454]
[1769184776635,1.2179536,2954.5,2952.7,0.15442454]
[1769184776921,1.2179536,2954.4,2952.9,0.15442454]
[1769184777132,0.1694,2955.2,2953.4,0.15442454]
[1769184777425,1.38742726,2955.1,2953.4,0.15442454]
[1769184777626,1.21801726,2955.0,2953.4,0.15442454]
[1769184777815,1.21801726,2954.9,2953.4,0.15442454]
[1769184778018,1.21801726,2954.8,2953.4,0.15442454]
[1769184778218,1.21801726,2954.7,2953.4,0.15442454]
[1769184778425,0.16941,2955.1,2953.4,0.15442454]
[1769184778617,1.21888408,2955.0,2953.4,0.15442454]
[1769184778818,1.21888408,2954.9,2953.4,0.15442454]
[1769184779026,1.21888408,2954.8,2953.4,0.15442454]
[1769184779226,1.21888408,2954.7,2953.4,0.15442454]
[1769184779423,0.16938,2955.6,2953.4,0.15442454]
[1769184779424,0.16938,2955.5,2953.4,0.15442454]
[1769184779725,1.21967473,2955.4,2953.4,0.15442454]
[1769184779929,1.21967473,2955.3,2953.4,0.15442454]
[1769184780224,1.21967473,2955.2,2953.4,0.15442454]
[1769184780417,1.21967473,2955.1,2953.4,0.15442454]
[1769184780614,1.21967473,2955.0,2953.5,0.15385904]
[1769184780817,0.00416531,2955.7,2953.9,1.64629779]
[1769184781016,1.21958949,2955.6,2954.3,0.15385904]
[1769184781216,2.70015562,2957.0,2955.1,0.1694]
[1769184781416,3.02210253,2957.2,2955.1,0.1694]
[1769184781417,1.21930099,2956.9,2955.2,0.15177638]
[1769184781720,0.16928,2957.3,2955.3,0.15177638]
[1769184781921,1.21487036,2957.2,2955.3,0.15177638]
[1769184782227,1.21487036,2957.1,2955.3,0.15177638]
[1769184782523,1.38718771,2957.0,2954.6,0.1504902]
[1769184782724,1.21487036,2956.9,2954.7,0.1504902]
[1769184783029,1.21487036,2956.8,2954.8,0.1504902]
[1769184783321,1.38688485,2956.7,2954.8,0.1504902]
[1769184783527,0.17233735,2956.7,2954.8,0.1504902]
[1769184783921,1.21250799,2956.6,2954.8,0.1504902]
[1769184784122,0.9011053,2956.5,2954.8,0.1504902]
[1769184784424,0.17233735,2956.7,2954.8,0.1504902]
[1769184784628,0.90061129,2956.6,2954.8,0.1504902]
[1769184784925,0.90061705,2956.5,2954.8,0.1504902]
[1769184785231,0.17233735,2956.7,2954.8,0.1504902]
[1769184785422,1.21128849,2956.6,2954.8,0.1504902]
[1769184785622,0.17233735,2956.7,2954.8,0.1504902]
[1769184785831,1.21128949,2956.6,2954.8,0.1504902]
[1769184786027,1.21132142,2956.5,2954.8,0.1504902]
[1769184786223,0.00578808,2956.3,2954.3,0.15168991]
[1769184786527,1.21126576,2956.2,2954.3,0.15168991]
[1769184786725,0.00577936,2956.2,2954.3,0.15168991]
[1769184787120,0.31109012,2956.1,2954.3,0.15168991]
[1769184787321,0.00577936,2955.9,2954.3,0.00258507]
[1769184787528,0.00577936,2955.7,2954.3,0.00258507]
[1769184787720,1.21123911,2955.6,2954.3,0.00258507]
[1769184787920,0.16936,2955.9,2954.3,0.00258507]
[1769184788130,1.21149826,2955.8,2954.3,0.00258507]
[1769184788327,0.90039409,2955.7,2954.3,0.15141876]
[1769184788524,0.16936,2955.9,2954.3,0.15141876]
[1769184790626,0.16932,2956.6,2954.3,0.15141876]
[1769184790824,1.2112224,2956.5,2954.3,0.15141876]
[1769184791023,1.2112224,2956.4,2954.3,0.15141876]
[1769184791225,1.2112224,2956.3,2954.3,0.15141876]
[1769184791533,0.16932,2956.6,2954.3,0.15141876]
[1769184791738,1.21098735,2956.5,2954.3,0.15141876]
[1769184792031,1.21098735,2956.4,2954.3,0.15141876]
[1769184792230,0.90002789,2956.3,2954.3,0.15141876]
[1769184792429,0.16932,2956.6,2954.3,0.15141876]
[1769184792625,1.21085274,2956.5,2954.3,0.15141876]
[1769184792831,0.89992957,2956.4,2954.3,0.15141876]
[1769184793128,0.16932,2956.6,2954.3,0.15141876]
[1769184793324,1.21085077,2956.5,2954.4,0.1484714]
[1769184793524,0.16932,2956.6,2954.6,0.1484714]
[1769184800231,6.423,2957.0,2954.9,0.14866874]
[1769184800432,6.68934087,2957.1,2954.9,0.14866874]
[1769184800632,1.20995241,2957.0,2954.9,0.14866874]
[1769184800829,0.89928172,2956.9,2954.9,0.14866874]
[1769184801034,6.68934087,2957.1,2954.9,0.14866874]
[1769184801236,1.20998385,2957.0,2954.9,0.14866874]
[1769184801430,0.00259587,2957.2,2955.4,0.14866874]
[1769184801631,0.00259587,2957.2,2955.7,0.14945682]
[1769184801832,0.00259587,2957.2,2955.7,0.31882682]
[1769184802134,0.00259587,2957.2,2955.8,0.14945682]
[1769184803430,0.00259587,2957.2,2954.7,2.9149946]
[1769184803431,0.16922,2958.5,2956.4,0.16933]
[1769184803633,0.16922,2958.5,2956.5,0.14815889]
[1769184804239,0.44550804,2958.5,2956.5,0.16932]
[1769184804435,0.16923,2958.2,2956.6,0.14685108]
[1769184804935,1.06809327,2958.1,2956.5,0.00271949]
[1769184805231,0.16923,2958.1,2956.5,0.00271949]
[1769184806035,0.89904837,2958.0,2956.5,0.00271949]
[1769184806332,0.89943877,2957.9,2956.5,0.00271949]
[1769184806536,0.17919335,2958.1,2956.5,0.00271949]
[1769184806840,0.27935575,2958.5,2955.4,0.14701308]
[1769184806841,0.16927,2957.5,2955.4,0.14701308]
[1769184807333,0.89988572,2957.4,2955.4,0.14701308]
[1769184807532,0.00724386,2957.4,2955.4,0.14701308]
[1769184807732,0.16927,2957.5,2955.4,0.14939991]
[1769184808034,0.89992526,2957.4,2955.4,0.14939991]
[1769184808237,0.16927,2957.5,2955.4,0.14939991]
[1769184808839,0.90042933,2957.4,2955.4,0.14939991]
[1769184809133,0.16927,2957.5,2955.4,0.14939991]
[1769184809328,0.90042994,2957.4,2955.4,0.14939991]
[1769184809531,0.16927,2957.5,2955.4,0.14939991]
[1769184809733,0.90097802,2957.4,2955.4,0.14939991]
[1769184809939,0.16927,2957.5,2955.4,0.14939991]
[1769184810133,0.90097781,2957.4,2955.4,0.14939991]
[1769184810336,0.16924,2958.1,2955.9,0.14856045]
[1769184810535,0.90076285,2958.0,2956.1,0.14856045]
[1769184810838,0.27935575,2958.5,2956.2,0.14856045]
[1769184811043,1.21185182,2958.4,2956.2,0.14856045]
[1769184811238,1.21185182,2958.3,2956.2,0.14856045]
[1769184811439,0.90071631,2958.2,2956.2,0.14856045]
[1769184811630,0.27935575,2958.5,2956.3,0.15020922]
[1769184811838,0.90031823,2958.4,2956.5,0.15021803]
[1769184812141,0.27935575,2958.5,2956.6,0.15021803]
[1769184812535,0.27935575,2958.5,2956.7,0.15021803]
[1769184813137,0.90296622,2958.4,2955.9,0.15021803]
[1769184813344,0.16923,2958.2,2955.9,0.15021803]
[1769184813540,0.89975097,2958.1,2956.1,0.15021803]
[1769184813739,0.16923,2958.2,2956.1,0.15021803]
[1769184814239,0.89936808,2958.1,2956.1,0.15021803]
[1769184814537,0.16923,2958.2,2956.1,0.15021803]
[1769184814843,0.89939029,2958.1,2956.1,0.15021803]
[1769184815042,0.16923,2958.2,2956.1,0.15021803]
[1769184815242,0.89939017,2958.1,2956.1,0.15021803]
[1769184815538,0.16923,2958.2,2956.1,0.31956803]
[1769184815741,0.16923,2958.2,2956.2,0.14934025]
[1769184816142,0.27935575,2958.5,2956.5,0.14961116]
[1769184817041,0.27935575,2958.5,2956.6,0.14961116]
[1769184817239,0.27935575,2958.5,2956.7,0.14961116]
[1769184818437,0.16922,2958.3,2956.7,0.14961116]
[1769184819444,0.89774043,2958.2,2956.7,0.14961116]
[1769184819640,0.16922,2958.3,2956.7,0.14961116]
[1769184819841,0.89774095,2958.2,2956.7,0.14961116]
[1769184820043,0.16922,2958.3,2956.7,0.14961116]
[1769184820342,0.89774093,2958.2,2956.7,0.14961116]
[1769184820537,0.16922,2958.3,2956.7,0.14961116]
[1769184820739,0.89808679,2958.2,2956.7,0.14961116]
[1769184820940,0.90375529,2958.1,2956.2,0.14903625]
[1769184821144,0.89817647,2958.0,2956.2,0.14903625]
[1769184821343,0.00557882,2958.1,2956.2,0.14903625]
[1769184821533,0.89846206,2958.0,2956.2,0.14903625]
[1769184821844,0.00557882,2958.1,2956.2,0.14903625]
[1769184822043,0.89846241,2958.0,2956.2,0.14903625]
[1769184822245,0.17480882,2958.1,2956.2,0.14903625]
[1769184822438,0.89880595,2958.0,2956.2,0.14903625]
[1769184822641,0.89880595,2957.9,2956.2,0.14903625]
[1769184822841,0.17480882,2958.1,2956.2,0.14903625]
[1769184823142,0.89881387,2958.0,2956.2,0.14903625]
[1769184823342,0.17480882,2958.1,2956.2,0.14903625]
[1769184823343,0.89881387,2957.9,2956.2,0.14903625]
[1769184823536,0.90339257,2957.8,2955.7,0.14953631]
[1769184823736,0.16925,2957.9,2955.9,0.1507575]
[1769184824039,0.89919367,2957.8,2956.0,0.1507575]
[1769184824342,0.16925,2957.9,2956.0,0.1507575]
[1769184824548,0.89944706,2957.8,2956.0,0.1507575]
[1769184824844,0.16925,2957.9,2956.0,0.1507575]
[1769184825043,0.16925,2957.9,2956.1,0.1507575]
[1769184825452,0.8997356,2957.8,2956.1,0.1507575]
[1769184825642,0.16925,2957.9,2956.1,0.1507575]
[1769184825942,0.89973158,2957.8,2956.1,0.1507575]
[1769184826140,0.16925,2957.9,2956.1,0.1507575]
[1769184826336,0.89973164,2957.8,2956.1,0.1507575]
[1769184826541,0.89973164,2957.7,2956.1,0.1507575]
[1769184826743,0.16925,2957.9,2956.1,0.1507575]
[1769184826952,0.16926,2957.7,2956.1,0.1507575]
[1769184827145,0.90006472,2957.6,2956.1,0.1507575]
[1769184827447,0.90006472,2957.5,2956.1,0.1507575]
[1769184827647,0.16926,2957.7,2956.1,0.1507575]
[1769184827849,0.90052193,2957.6,2956.1,0.1507575]
[1769184828050,0.90052193,2957.5,2956.1,0.1507575]
[1769184828242,0.90097911,2957.4,2956.1,0.1507575]
[1769184828446,0.16926,2957.7,2956.1,0.1507575]
[1769184828645,1.21282161,2957.6,2956.1,0.1507575]
[1769184828941,0.90097905,2957.5,2956.1,0.1507575]
[1769184829141,0.90097905,2957.4,2956.1,0.1507575]
[1769184829342,0.16926,2957.7,2956.1,0.1507575]
[1769184829543,1.21357251,2957.6,2956.1,0.1507575]
[1769184829743,1.21357251,2957.5,2956.1,0.1507575]
[1769184830045,0.90153636,2957.4,2956.1,0.1507575]
[1769184830250,0.90210115,2957.3,2956.1,0.1507575]
[1769184830450,0.16926,2957.7,2956.1,0.1507575]
[1769184830650,1.21436449,2957.6,2956.1,0.1507575]
[1769184830957,1.21436449,2957.5,2956.1,0.1507575]
[1769184831146,0.9021418,2957.4,2956.1,0.1507575]
[1769184831445,0.9021418,2957.3,2956.1,0.1507575]
[1769184831645,0.16926,2957.7,2956.1,0.1507575]
[1769184831845,1.21510131,2957.6,2956.1,0.1507575]
[1769184832146,1.21510131,2957.5,2956.1,0.1507575]
[1769184832349,1.21510131,2957.4,2956.1,0.1507575]
[1769184832648,0.90269,2957.3,2956.1,0.1507575]
[1769184832849,0.16926,2957.7,2956.1,0.1507575]
[1769184833049,1.21507154,2957.6,2956.1,0.1507575]
[1769184833256,1.21507154,2957.5,2956.1,0.1507575]
[1769184833554,1.21507154,2957.4,2956.1,0.1507575]
[1769184833853,0.902668,2957.3,2956.1,0.1507575]
[1769184834049,0.16926,2957.7,2956.1,0.1507575]
[1769184834255,1.21502757,2957.6,2956.1,0.1507575]
[1769184834454,1.21502757,2957.5,2956.1,0.1507575]
[1769184834654,1.21502757,2957.4,2956.1,0.1507575]
[1769184834954,0.90263638,2957.3,2956.1,0.1507575]
[1769184835154,0.16926,2957.6,2956.1,0.1507575]
[1769184835354,1.21524128,2957.5,2956.1,0.1507575]
[1769184835655,1.21524128,2957.4,2956.1,0.1507575]
[1769184835850,0.90280429,2957.3,2956.1,0.1507575]
[1769184836050,0.16926,2957.6,2956.1,0.1507575]
[1769184836254,1.21520158,2957.5,2956.1,0.1507575]
[1769184836456,0.16926,2957.6,2956.1,0.1507575]
[1769184836457,0.90277504,2957.4,2956.1,0.1507575]
[1769184836753,0.16926,2957.6,2956.1,0.1507575]
[1769184836954,1.21518996,2957.5,2956.1,0.1507575]
[1769184837256,0.90276602,2957.4,2956.1,0.1507575]
[1769184837552,0.16926,2957.6,2956.1,0.1507575]
[1769184837755,1.21535113,2957.5,2956.1,0.1507575]
[1769184837953,0.90288596,2957.4,2956.1,0.1507575]
[1769184838154,0.16926,2957.6,2956.1,0.1507575]
[1769184838356,1.21531687,2957.5,2956.1,0.1507575]
[1769184838554,0.90286149,2957.4,2956.1,0.1507575]
[1769184838755,0.16926,2957.6,2956.1,0.1507575]
[1769184839057,1.21554577,2957.5,2956.1,0.1507575]
[1769184839257,0.90303194,2957.4,2956.1,0.1507575]
[1769184839456,0.16926,2957.6,2956.1,0.1507575]
[1769184839653,1.21571747,2957.5,2956.1,0.1507575]
[1769184839854,0.16923,2958.2,2956.4,0.15162448]
[1769184840054,1.215574,2958.1,2956.4,0.15162448]
[1769184840253,0.31251631,2958.0,2956.4,0.15162448]
[1769184840454,1.215574,2957.9,2956.4,0.15162448]
[1769184840659,1.215574,2957.8,2956.4,0.15162448]
[1769184840852,0.90305769,2957.7,2956.4,0.15162448]
[1769184841055,0.16923,2958.2,2956.4,0.15162448]
[1769184841254,1.21558374,2958.1,2956.4,0.15162448]
[1769184841454,0.16926,2957.7,2956.4,0.15162448]
[1769184841755,1.21558374,2957.6,2956.4,0.15162448]
[1769184841955,1.21558374,2957.5,2956.4,0.15162448]
[1769184842158,1.21558374,2957.4,2956.4,0.15162448]
[1769184842359,0.16926,2957.7,2956.4,0.15162448]
[1769184842559,1.21602317,2957.6,2956.4,0.15162448]
[1769184842754,1.21602317,2957.5,2956.4,0.15162448]
[1769184842958,0.16926,2957.7,2956.4,0.15162448]
[1769184843160,1.21595489,2957.6,2956.4,0.15162448]
[1769184843359,0.90334236,2957.5,2956.4,0.15162448]
[1769184843561,0.16926,2957.7,2956.4,0.15162448]
[1769184843857,1.21604552,2957.6,2956.0,0.1514287]
[1769184844058,0.16928,2957.4,2955.5,0.1514287]
[1769184844258,1.21604552,2957.3,2955.5,0.1514287]
[1769184844561,1.21604552,2957.2,2955.5,0.1514287]
[1769184844762,0.90340924,2957.1,2955.5,0.1514287]
[1769184845062,1.21603476,2957.0,2955.5,0.1514287]
[1769184845362,0.16928,2957.4,2955.5,0.1514287]
[1769184845664,1.3858024,2957.3,2955.5,0.1514287]
[1769184845867,1.21571537,2957.2,2955.5,0.1514287]
[1769184846157,1.21571537,2957.1,2955.5,0.1514287]
[1769184846358,0.1693,2956.9,2955.4,0.00238683]
[1769184846559,1.21571537,2956.8,2955.4,0.15315963]
[1769184846758,0.90315542,2956.7,2955.4,0.15315963]
[1769184846960,1.21562724,2956.6,2955.4,0.00238683]
[1769184847160,1.21562724,2956.5,2955.4,0.00238683]
[1769184847351,1.21562724,2956.5,2955.4,0.00010456]
[1769184847352,1.21562724,2956.4,2955.4,0.00010456]
[1769184847556,1.21562724,2956.3,2955.4,0.00010456]
[1769184847757,1.21562724,2956.2,2955.4,0.00010456]
[1769184847952,0.16933,2956.5,2955.4,0.00010456]
[1769184848156,1.21535307,2956.4,2955.4,0.00010456]
[1769184848366,1.21535307,2956.3,2955.4,0.00010456]
[1769184848570,0.90294601,2956.2,2955.4,0.00010456]
[1769184848765,1.21494813,2956.1,2954.3,0.15229181]
[1769184849059,0.90263995,2956.0,2954.3,0.15229181]
[1769184849264,1.21500134,2955.9,2954.3,0.15229181]
[1769184849468,0.90263995,2955.8,2954.3,0.15229181]
[1769184849767,0.16934,2956.2,2954.3,0.15521693]
[1769184849967,1.21424679,2956.1,2954.3,0.15521693]
[1769184850259,1.21424679,2956.0,2954.3,0.15521693]
[1769184850465,1.21424679,2955.9,2954.3,0.15521693]
[1769184850664,1.21392872,2955.8,2954.3,0.15521693]
[1769184850971,0.00316918,2956.4,2954.3,0.32466693]
[1769184851166,1.21317058,2956.3,2954.6,0.1521379]
[1769184851362,0.00316918,2956.4,2954.6,0.1521379]
[1769184851560,0.00316918,2956.4,2954.6,0.3215679]
[1769184851765,0.00316918,2956.4,2954.9,0.15226872]
[1769184852061,0.00316918,2956.4,2955.1,0.15226872]
[1769184856369,0.00316918,2956.4,2955.1,0.32166872]
[1769184856677,0.00316918,2956.4,2955.4,0.1507072]
[1769184859675,0.00316918,2956.4,2955.4,0.3200972]
[1769184859978,0.16929,2957.2,2955.5,0.1503016]
[1769184860273,0.00241346,2957.6,2954.9,0.1503016]
[1769184860274,0.00322467,2957.0,2954.9,0.1503016]
[1769184860464,1.21560307,2956.9,2954.9,0.1503016]
[1769184860667,0.00322467,2956.7,2954.9,0.1503016]
[1769184860868,1.2123784,2956.6,2954.9,0.1503016]
[1769184861068,1.2123784,2956.5,2954.9,0.1503016]
[1769184861271,1.21257449,2956.4,2954.9,0.1503016]
[1769184861470,0.31176865,2956.3,2954.9,0.1503016]
[1769184861670,0.16933,2956.5,2954.9,0.1503016]
[1769184861871,1.21260038,2956.4,2954.9,0.1503016]
[1769184862071,0.31181458,2956.3,2954.9,0.1503016]
[1769184862271,0.16933,2956.5,2954.9,0.1503016]
[1769184862471,1.21252619,2956.4,2954.9,0.1503016]
[1769184862667,0.31178667,2956.3,2954.9,0.1503016]
[1769184862873,0.00338182,2956.7,2954.9,0.1503016]
[1769184863785,0.00338182,2956.7,2954.9,1.47097202]
[1769184863975,0.00338182,2956.7,2955.0,0.14992789]
[1769184865268,0.00338182,2956.7,2955.4,1.32067042]
[1769184865474,0.00397209,2958.1,2955.5,0.14992789]
[1769184865681,1.21235514,2958.0,2955.5,0.14992789]
[1769184865882,1.21235514,2957.9,2955.5,0.14992789]
[1769184866070,1.21235514,2957.8,2955.5,0.14992789]
[1769184866271,1.21235514,2957.7,2955.5,0.14992789]
[1769184866479,0.00383588,2957.7,2955.5,0.14992789]
[1769184867774,1.21238338,2957.6,2955.5,0.14992789]
[1769184867979,1.21238338,2957.5,2955.5,0.14992789]
[1769184868281,1.21238338,2957.4,2955.5,0.14992789]
[1769184868477,1.21238338,2957.3,2955.5,0.14992789]
[1769184868677,1.21238338,2957.2,2955.5,0.14992789]
[1769184868875,0.00383588,2957.7,2955.5,0.14992789]
[1769184869180,2.53344421,2957.6,2955.5,0.14992789]
[1769184869481,1.21277379,2957.5,2955.5,0.14992789]
[1769184869682,0.31183909,2957.4,2955.5,0.14992789]
[1769184869882,0.00383588,2957.7,2955.5,0.14992789]
[1769184870180,1.21295467,2957.6,2955.5,0.14992789]
[1769184870376,1.21295467,2957.5,2955.5,0.14992789]
[1769184870681,0.00383588,2957.7,2955.5,0.14992789]
[1769184870882,0.00177923,2957.5,2955.5,0.14992789]
[1769184871085,0.00177923,2957.3,2955.5,0.14992789]
[1769184871282,1.21288679,2957.2,2955.5,0.14992789]
[1769184871580,1.21288679,2957.1,2955.5,0.14992789]
[1769184871785,1.21288679,2957.0,2955.5,0.14992789]
[1769184871982,1.21288679,2956.9,2955.5,0.14992789]
[1769184872283,0.00177923,2957.3,2955.5,0.14992789]
[1769184872485,1.21384985,2957.2,2955.5,0.14992789]
[1769184872683,1.21384985,2957.1,2955.5,0.14992789]
[1769184872883,1.21384985,2957.0,2955.5,0.14992789]
[1769184873085,1.21384985,2956.9,2955.5,0.14992789]
[1769184873285,3.7507518,2957.6,2955.5,0.14992789]
[1769184873581,1.21418718,2957.5,2955.5,0.14992789]
[1769184873780,1.21418718,2957.4,2955.5,0.14992789]
[1769184873980,1.21418718,2957.3,2955.5,0.14992789]
[1769184874186,1.21418718,2957.2,2955.5,0.14992789]
[1769184874389,0.3121929,2957.1,2955.5,0.14992789]
[1769184874583,0.00383588,2957.7,2955.5,0.14992789]
[1769184874779,1.21412009,2957.6,2955.5,0.14992789]
[1769184874975,1.21412009,2957.5,2955.5,0.14992789]
[1769184875176,1.21412009,2957.4,2955.5,0.14992789]
[1769184875376,1.21412009,2957.3,2955.5,0.14992789]
[1769184875578,1.21404918,2957.2,2955.5,0.14992789]
[1769184875781,0.00383588,2957.7,2955.5,0.14992789]
[1769184875980,1.21405314,2957.6,2955.5,0.14992789]
[1769184876181,1.21405314,2957.5,2955.5,0.14992789]
[1769184876380,1.21405314,2957.4,2955.5,0.14992789]
[1769184876583,1.21405314,2957.3,2955.5,0.14992789]
[1769184876788,0.31212512,2957.2,2955.5,0.14992789]
[1769184876990,0.00383588,2957.7,2955.5,0.14992789]
[1769184877186,1.21396785,2957.6,2955.5,0.14992789]
[1769184877389,1.21396785,2957.5,2955.5,0.14992789]
[1769184877590,0.00383588,2957.7,2956.0,0.15193756]
[1769184877890,5.44928348,2959.3,2956.6,0.15193737]
[1769184878088,1.21507827,2959.2,2956.6,0.15193737]
[1769184878390,1.21507827,2959.1,2957.1,0.15193737]
[1769184878602,0.26427276,2959.5,2957.1,0.15193737]
[1769184878794,1.2134554,2959.4,2957.1,0.15500119]
[1769184878995,0.00342393,2959.5,2957.1,0.15500119]
[1769184879197,0.90193378,2959.4,2957.1,0.15500119]
[1769184879496,0.26810193,2959.5,2957.1,0.15500119]
[1769184879997,0.26810193,2959.5,2957.3,0.15245295]
[1769184882196,0.00342393,2959.5,2957.6,0.15253037]
[1769184885992,0.00342393,2959.5,2957.2,9.8]
[1769184885993,0.00342393,2959.5,2958.1,0.15270741]
[1769184887904,0.00342393,2959.5,2957.3,0.15279667]
[1769184888701,0.17257393,2959.5,2957.3,0.15279667]
[1769184889194,0.17257393,2959.5,2957.4,0.15279667]
[1769184889399,0.17257393,2959.5,2957.5,0.15279667]
[1769184892206,0.16916,2959.4,2957.5,0.15279667]
[1769184893309,0.00342393,2959.5,2957.5,0.15279667]
[1769184893510,0.89682827,2959.4,2957.1,0.00306382]
[1769184893806,1.20654801,2959.3,2957.1,0.00306382]
[1769184894008,0.89682827,2959.2,2957.1,0.00306382]
[1769184894210,0.00342393,2959.5,2957.1,0.15568337]
[1769184894211,0.89682827,2959.1,2957.1,0.15568337]
[1769184894508,0.16917,2959.3,2957.1,0.15568337]
[1769184894701,1.06634425,2959.2,2957.1,0.15568337]
[1769184894898,0.89717425,2959.1,2957.1,0.15568337]
[1769184895310,0.16917,2959.2,2957.1,0.15568337]
[1769184897517,0.16917,2959.2,2957.2,0.15267596]
[1769184899309,0.89817521,2959.1,2957.2,0.15267596]
[1769184899511,0.16919,2959.0,2957.2,0.15267596]
[1769184899707,0.89823964,2958.9,2957.2,0.15267596]
[1769184900016,0.00342393,2959.5,2957.2,0.15267596]
[1769184900213,0.1692,2958.7,2957.1,0.00306382]
[1769184900409,0.89841148,2958.6,2957.1,0.00306382]
[1769184900605,0.16922,2958.3,2957.1,0.00306382]
[1769184901141,0.16924,2958.0,2956.3,0.15268376]
[1769184901428,0.16921,2958.6,2956.6,0.15268376]
[1769184901629,2.59635095,2959.3,2956.8,0.15224444]
[1769184901823,1.20924594,2959.2,2956.9,0.15224703]
[1769184902018,1.20924594,2959.1,2956.9,0.15642112]